Department Family,Entity,Date Paid,Expense Type,Expenses Area,Supplier Name,Transaction Reference,Total,VAT Registration Number
Department of Health,Imperial College Healthcare NHS Trust,05/04/2018,Agency Scient & Prof Qualified,"Div Of Surg, Cardiov & Cancer",Reed,3748689,"41,785.08",Optional requirement only
Department of Health,Imperial College Healthcare NHS Trust,05/04/2018,Agency Scient & Prof Qualified,Pathology,Reed,6954,"51,482.67",Optional requirement only
Department of Health,Imperial College Healthcare NHS Trust,05/04/2018,Buildings-Additions-Purchased,Capital Summary,Deanway Builders,3747062,"46,200.00",Optional requirement only
Department of Health,Imperial College Healthcare NHS Trust,05/04/2018,Clinical Managed Service Contr,"Div Of Surg, Cardiov & Cancer",Medtronic Ltd,3749069,"977,231.29",Optional requirement only
Department of Health,Imperial College Healthcare NHS Trust,05/04/2018,Computer Hardware Purch,Information & Comms Technology,Cdw Ltd,3746958,"80,897.81",Optional requirement only
Department of Health,Imperial College Healthcare NHS Trust,05/04/2018,Computer Maintenance,Information & Comms Technology,Experian,3746785,"38,464.06",Optional requirement only
Department of Health,Imperial College Healthcare NHS Trust,05/04/2018,P & M-Additions-Purchased,Capital Summary,Origio Ltd,3746826,"59,256.00",Optional requirement only
Department of Health,Imperial College Healthcare NHS Trust,10/04/2018,Agency Admin & Clerical,Finance Directorate,Reed,3749947,"36,896.37",Optional requirement only
Department of Health,Imperial College Healthcare NHS Trust,10/04/2018,Agency Nursing: Qualified,Div Of Med & Integrated Care,Reed,3749947,"95,903.31",Optional requirement only
Department of Health,Imperial College Healthcare NHS Trust,10/04/2018,Agency Nursing: Qualified,Div Of Med & Integrated Care,Reed,3749948,"113,510.15",Optional requirement only
Department of Health,Imperial College Healthcare NHS Trust,10/04/2018,Agency Nursing: Qualified,"Div Of Surg, Cardiov & Cancer",Reed,3749947,"87,202.70",Optional requirement only
Department of Health,Imperial College Healthcare NHS Trust,10/04/2018,Agency Nursing: Qualified,"Div Of Surg, Cardiov & Cancer",Reed,3749948,"79,958.41",Optional requirement only
Department of Health,Imperial College Healthcare NHS Trust,10/04/2018,Agency Nursing: Qualified,Div Of Women & Clin Support,Reed,3749947,"45,557.43",Optional requirement only
Department of Health,Imperial College Healthcare NHS Trust,10/04/2018,Agency Nursing: Qualified,Div Of Women & Clin Support,Reed,3749948,"37,679.11",Optional requirement only
Department of Health,Imperial College Healthcare NHS Trust,10/04/2018,Agency Scient & Prof Qualified,Pathology,Reed,7045,"59,409.52",Optional requirement only
Department of Health,Imperial College Healthcare NHS Trust,10/04/2018,Clinical Managed Service Contr,"Div Of Surg, Cardiov & Cancer",Medtronic Ltd,3749745,"1,416,248.82",Optional requirement only
Department of Health,Imperial College Healthcare NHS Trust,10/04/2018,Discount Taken,Finance Directorate,Oxygen Finance Ltd,3749258,"115,675.61",Optional requirement only
Department of Health,Imperial College Healthcare NHS Trust,10/04/2018,Isotopes,Div Of Women & Clin Support,Mallinckrodt Rp Uk Ltd,3749269,"51,417.60",Optional requirement only
Department of Health,Imperial College Healthcare NHS Trust,10/04/2018,Items Pending Investigation,Ichnt Balance Sheet,Nhs Supply Chain,3749214,"134,449.58",Optional requirement only
Department of Health,Imperial College Healthcare NHS Trust,12/04/2018,Housing Deductions,Ichnt Balance Sheet,A2dominion Housing Group Ltd,3750210,"190,836.88",Optional requirement only
Department of Health,Imperial College Healthcare NHS Trust,12/04/2018,Agency Scient & Prof Qualified,"Div Of Surg, Cardiov & Cancer",Reed,3751757,"62,320.06",Optional requirement only
Department of Health,Imperial College Healthcare NHS Trust,12/04/2018,Agency Scient & Prof Qualified,Div Of Women & Clin Support,Reed,3751757,"38,858.57",Optional requirement only
Department of Health,Imperial College Healthcare NHS Trust,12/04/2018,Agency Scient & Prof Qualified,Pathology,Reed,7118,"42,220.26",Optional requirement only
Department of Health,Imperial College Healthcare NHS Trust,12/04/2018,Blood Products,Pathology,Nhs Blood And Transplant,3750649,"65,145.83",Optional requirement only
Department of Health,Imperial College Healthcare NHS Trust,12/04/2018,Clinical Managed Service Contr,Pathology,The Hillingdon Hospital Nhs Foundation Trust,7114,"510,755.38",Optional requirement only
Department of Health,Imperial College Healthcare NHS Trust,12/04/2018,Gbs - Main Bank Account,Ichnt Balance Sheet,Nhs Supply Chain,3750271,"1,500,000.00",Optional requirement only
Department of Health,Imperial College Healthcare NHS Trust,12/04/2018,Items Pending Investigation,Ichnt Balance Sheet,Philips Healthcare,3751569,"35,930.23",Optional requirement only
Department of Health,Imperial College Healthcare NHS Trust,12/04/2018,Laparoscopic Equip,"Div Of Surg, Cardiov & Cancer",Medtronic Ltd,3750642,"64,029.60",Optional requirement only
Department of Health,Imperial College Healthcare NHS Trust,12/04/2018,Med & Surg Equip General,Div Of Women & Clin Support,Alliance Medical Ltd,3751047,"79,200.00",Optional requirement only
Department of Health,Imperial College Healthcare NHS Trust,12/04/2018,P & M-Additions-Purchased,Capital Summary,Cannon Medical Systems Ltd,3749124,"54,000.00",Optional requirement only
Department of Health,Imperial College Healthcare NHS Trust,12/04/2018,P & M-Additions-Purchased,Capital Summary,Cannon Medical Systems Ltd,3750135,"54,000.00",Optional requirement only
Department of Health,Imperial College Healthcare NHS Trust,12/04/2018,P & M-Additions-Purchased,Capital Summary,Olympus Keymed,3751329,"43,690.27",Optional requirement only
Department of Health,Imperial College Healthcare NHS Trust,12/04/2018,P & M-Additions-Purchased,Capital Summary,Olympus Keymed,3751758,"143,940.05",Optional requirement only
Department of Health,Imperial College Healthcare NHS Trust,12/04/2018,Srvcsrecd-Foundationtrust,Pathology,Chelsea And  Westminster Hospital Nhs Ft,7080,"41,865.42",Optional requirement only
Department of Health,Imperial College Healthcare NHS Trust,12/04/2018,Srvcsrecd-Foundationtrust,Pathology,Chelsea And  Westminster Hospital Nhs Ft,7081,"41,865.42",Optional requirement only
Department of Health,Imperial College Healthcare NHS Trust,12/04/2018,Housing Deductions,Ichnt Balance Sheet,Thames Valley Charitable Housing,3750211,"111,651.06",Optional requirement only
Department of Health,Imperial College Healthcare NHS Trust,16/04/2018,Srvcsrecd-Other Nhs,Pathology,Biomnis,6974,"29,650.14",Optional requirement only
Department of Health,Imperial College Healthcare NHS Trust,17/04/2018,Agency Admin & Clerical,Finance Directorate,Reed,3753853,"48,564.12",Optional requirement only
Department of Health,Imperial College Healthcare NHS Trust,17/04/2018,Agency Nursing: Qualified,Div Of Med & Integrated Care,Reed,3753853,"202,029.16",Optional requirement only
Department of Health,Imperial College Healthcare NHS Trust,17/04/2018,Agency Nursing: Qualified,"Div Of Surg, Cardiov & Cancer",Reed,3753853,"211,969.02",Optional requirement only
Department of Health,Imperial College Healthcare NHS Trust,17/04/2018,Agency Nursing: Qualified,Div Of Women & Clin Support,Reed,3753853,"96,249.86",Optional requirement only
Department of Health,Imperial College Healthcare NHS Trust,17/04/2018,Agency Scient & Prof Qualified,Pathology,Reed,7183,"46,853.18",Optional requirement only
Department of Health,Imperial College Healthcare NHS Trust,17/04/2018,Buildings-Add(Prof Fee)-Purch,Capital Summary,Building Design Partnership Ltd,3749079,"59,278.80",Optional requirement only
Department of Health,Imperial College Healthcare NHS Trust,17/04/2018,Computer Software/License,Div Of Women & Clin Support,Carestream Health Uk Ltd,3753717,"296,012.10",Optional requirement only
Department of Health,Imperial College Healthcare NHS Trust,17/04/2018,Contr Refuse & Clin Waste,Nursing Directorate,Grundon Waste Management Ltd,3752907,"30,492.04",Optional requirement only
Department of Health,Imperial College Healthcare NHS Trust,17/04/2018,Cx-Hh Consultant Load,Ichnt Balance Sheet,Dr Andrew Wright,3753709,"79,618.50",Optional requirement only
Department of Health,Imperial College Healthcare NHS Trust,17/04/2018,Cx-Hh Consultant Load,Ichnt Balance Sheet,Dr J. De La Fuente,3753713,"27,181.00",Optional requirement only
Department of Health,Imperial College Healthcare NHS Trust,17/04/2018,Dist Award - Local Cea,Div Of Med & Integrated Care,Imperial College London,3753687,"25,248.08",Optional requirement only
Department of Health,Imperial College Healthcare NHS Trust,17/04/2018,Dist Award - Nat Cea,Div Of Med & Integrated Care,Imperial College London,3753687,"90,930.41",Optional requirement only
Department of Health,Imperial College Healthcare NHS Trust,17/04/2018,Dist Award - Nat Cea,"Div Of Surg, Cardiov & Cancer",Imperial College London,3753687,"104,561.85",Optional requirement only
Department of Health,Imperial College Healthcare NHS Trust,17/04/2018,Dist Award - Nat Cea,Div Of Women & Clin Support,Imperial College London,3753687,"84,167.18",Optional requirement only
Department of Health,Imperial College Healthcare NHS Trust,17/04/2018,Dist Award - Nat Cea,Medical Director Summary,Imperial College London,3753687,"27,687.97",Optional requirement only
Department of Health,Imperial College Healthcare NHS Trust,17/04/2018,Ext Contract Portering,Nursing Directorate,Sodexo Limited,3753902,"435,246.21",Optional requirement only
Department of Health,Imperial College Healthcare NHS Trust,17/04/2018,Ext Contr Catering,Nursing Directorate,Sodexo Limited,3753902,"595,882.35",Optional requirement only
Department of Health,Imperial College Healthcare NHS Trust,17/04/2018,Ext Contr Domestics,Nursing Directorate,Sodexo Limited,3753902,"1,159,139.27",Optional requirement only
Department of Health,Imperial College Healthcare NHS Trust,17/04/2018,Ext Contr Oth Hotel Srv,Nursing Directorate,Sodexo Limited,3753902,"86,180.41",Optional requirement only
Department of Health,Imperial College Healthcare NHS Trust,17/04/2018,Ic Pay Recharge In: Med,Div Of Med & Integrated Care,Imperial College London,3753687,"177,677.65",Optional requirement only
Department of Health,Imperial College Healthcare NHS Trust,17/04/2018,Ic Pay Recharge In: Med,"Div Of Surg, Cardiov & Cancer",Imperial College London,3753687,"310,041.15",Optional requirement only
Department of Health,Imperial College Healthcare NHS Trust,17/04/2018,Ic Pay Recharge In: Med,"Div Of Surg, Cardiov & Cancer",Imperial College London,3753688,"45,342.60",Optional requirement only
Department of Health,Imperial College Healthcare NHS Trust,17/04/2018,Ic Pay Recharge In: Med,Div Of Women & Clin Support,Imperial College London,3753687,"93,443.81",Optional requirement only
Department of Health,Imperial College Healthcare NHS Trust,17/04/2018,Ic Pay Recharge In: Med,Medical Director Summary,Imperial College London,3753687,"25,342.82",Optional requirement only
Department of Health,Imperial College Healthcare NHS Trust,17/04/2018,Stock,Balance Sheet St Marys,Roche Products Ltd,3748337,"73,249.80",Optional requirement only
Department of Health,Imperial College Healthcare NHS Trust,17/04/2018,Lab Equip Maint / Repairs,Pathology,Beckman Coulter Uk Ltd,3753282,"41,850.38",Optional requirement only
Department of Health,Imperial College Healthcare NHS Trust,17/04/2018,Med & Prof Fees (Imaging Cons),Ichnt Balance Sheet,Lindo Wing Radiology Llp,3753778,"134,019.50",Optional requirement only
Department of Health,Imperial College Healthcare NHS Trust,17/04/2018,Taxi & Other Vehicle Hire,Nursing Directorate,Dhl Supply Chain  (Former Excel),3753851,"63,269.77",Optional requirement only
Department of Health,Imperial College Healthcare NHS Trust,18/04/2018,Income Tax Paye,Ichnt Balance Sheet,Hmrc Government Employers Account,3753489,"14,473,922.50",Optional requirement only
Department of Health,Imperial College Healthcare NHS Trust,19/04/2018,Buildings-Additions-Purchased,Capital Summary,Alarm Communication Limited,3749074,"33,724.93",Optional requirement only
Department of Health,Imperial College Healthcare NHS Trust,19/04/2018,Buildings-Additions-Purchased,Capital Summary,Alarm Communication Limited,3749109,"43,387.87",Optional requirement only
Department of Health,Imperial College Healthcare NHS Trust,19/04/2018,Buildings-Additions-Purchased,Capital Summary,Amber Group Limited,3746781,"33,850.20",Optional requirement only
Department of Health,Imperial College Healthcare NHS Trust,19/04/2018,Computer Maintenance,"Div Of Surg, Cardiov & Cancer",Mckesson Technologies Uk Ltd,3749100,"89,805.53",Optional requirement only
Department of Health,Imperial College Healthcare NHS Trust,19/04/2018,Electricity,Nursing Directorate,Edf Energy Customer Plc,3752566,"270,368.75",Optional requirement only
Department of Health,Imperial College Healthcare NHS Trust,19/04/2018,Electricity,Nursing Directorate,Edf Energy Customer Plc,3752569,"229,971.05",Optional requirement only
Department of Health,Imperial College Healthcare NHS Trust,19/04/2018,Electricity,Nursing Directorate,Edf Energy Customer Plc,3752571,"35,529.70",Optional requirement only
Department of Health,Imperial College Healthcare NHS Trust,19/04/2018,Electricity,Nursing Directorate,Edf Energy Customer Plc,3752573,"87,602.19",Optional requirement only
Department of Health,Imperial College Healthcare NHS Trust,19/04/2018,Ext Contract - Patient Travel,Nursing Directorate,Dhl Supply Chain  (Former Excel),3753850,"39,619.44",Optional requirement only
Department of Health,Imperial College Healthcare NHS Trust,19/04/2018,Stock,Balance Sheet St Marys,Aah Pharmaceuticals Limited,3748793,"47,340.00",Optional requirement only
Department of Health,Imperial College Healthcare NHS Trust,19/04/2018,Stock,Balance Sheet St Marys,Baxter Healthcare Ltd,3751358,"43,064.66",Optional requirement only
Department of Health,Imperial College Healthcare NHS Trust,19/04/2018,Stock,Balance Sheet St Marys,Genzyme Therapeutics Ltd,3751383,"169,080.00",Optional requirement only
Department of Health,Imperial College Healthcare NHS Trust,19/04/2018,Stock,Balance Sheet St Marys,Gilead Sciences Ltd,3751433,"34,518.54",Optional requirement only
Department of Health,Imperial College Healthcare NHS Trust,19/04/2018,Stock,Balance Sheet St Marys,Qualasept Ltd,3753869,"61,623.00",Optional requirement only
Department of Health,Imperial College Healthcare NHS Trust,19/04/2018,P & M-Additions-Purchased,Capital Summary,Optima Medical Ltd,3746947,"81,211.20",Optional requirement only
Department of Health,Imperial College Healthcare NHS Trust,23/04/2018,Cnst Contributions,Other Hq Departments,Nhs Litigation Authority,3755732,"3,233,960.70",Optional requirement only
Department of Health,Imperial College Healthcare NHS Trust,23/04/2018,Insurance Costs,Office Of Chief Executive,Nhs Litigation Authority,3755734,"42,303.50",Optional requirement only
Department of Health,Imperial College Healthcare NHS Trust,24/04/2018,Agency Admin & Clerical,Finance Directorate,Reed,3755838,"36,323.67",Optional requirement only
Department of Health,Imperial College Healthcare NHS Trust,24/04/2018,Agency Nursing: Qualified,Div Of Med & Integrated Care,Reed,3755838,"111,397.28",Optional requirement only
Department of Health,Imperial College Healthcare NHS Trust,24/04/2018,Agency Nursing: Qualified,"Div Of Surg, Cardiov & Cancer",Reed,3755838,"82,722.83",Optional requirement only
Department of Health,Imperial College Healthcare NHS Trust,24/04/2018,Agency Nursing: Qualified,Div Of Women & Clin Support,Reed,3755838,"42,566.89",Optional requirement only
Department of Health,Imperial College Healthcare NHS Trust,24/04/2018,Agency Scient & Prof Qualified,"Div Of Surg, Cardiov & Cancer",Reed,3755841,"35,548.45",Optional requirement only
Department of Health,Imperial College Healthcare NHS Trust,24/04/2018,Agency Scient & Prof Qualified,Pathology,Reed,7218,"53,990.03",Optional requirement only
Department of Health,Imperial College Healthcare NHS Trust,24/04/2018,Buildings-Additions-Purchased,Capital Summary,Alarm Communication Limited,3749090,"34,419.86",Optional requirement only
Department of Health,Imperial College Healthcare NHS Trust,24/04/2018,Buildings-Additions-Purchased,Capital Summary,Alarm Communication Limited,3749108,"69,546.00",Optional requirement only
Department of Health,Imperial College Healthcare NHS Trust,24/04/2018,Buildings-Additions-Purchased,Capital Summary,Williams Building Company (22) Limited,3751051,"45,600.00",Optional requirement only
Department of Health,Imperial College Healthcare NHS Trust,24/04/2018,Buildings-Add(Prof Fee)-Purch,Capital Summary,The Richard Stephens Partnership,3746844,"36,432.00",Optional requirement only
Department of Health,Imperial College Healthcare NHS Trust,24/04/2018,Computer Software/License,"Div Of Surg, Cardiov & Cancer",Philips Healthcare,3751352,"58,017.91",Optional requirement only
Department of Health,Imperial College Healthcare NHS Trust,24/04/2018,Computer Software/License,"Div Of Surg, Cardiov & Cancer",Philips Healthcare,3751353,"58,017.91",Optional requirement only
Department of Health,Imperial College Healthcare NHS Trust,24/04/2018,Computer Software/License,Information & Comms Technology,Ultima Business Solutions Ltd,3746804,"46,236.12",Optional requirement only
Department of Health,Imperial College Healthcare NHS Trust,24/04/2018,Dialysers,Div Of Med & Integrated Care,Baxter Healthcare Ltd,3755708,"121,130.28",Optional requirement only
Department of Health,Imperial College Healthcare NHS Trust,24/04/2018,Stock,Balance Sheet St Marys,Genzyme Therapeutics Ltd,3751942,"219,804.00",Optional requirement only
Department of Health,Imperial College Healthcare NHS Trust,24/04/2018,P & M-Additions-Purchased,Capital Summary,Beckman Coulter Uk Ltd,3755695,"71,886.97",Optional requirement only
Department of Health,Imperial College Healthcare NHS Trust,24/04/2018,P & M-Additions-Purchased,Capital Summary,Rofin-Baasel Uk Ltd,3755545,"37,888.80",Optional requirement only
Department of Health,Imperial College Healthcare NHS Trust,25/04/2018,Stock,Ichnt Balance Sheet,Nhs Supply Chain,3759928,"114,906.43",Optional requirement only
Department of Health,Imperial College Healthcare NHS Trust,25/04/2018,Stock,Ichnt Balance Sheet,Nhs Supply Chain,3759950,"116,801.52",Optional requirement only
Department of Health,Imperial College Healthcare NHS Trust,25/04/2018,Stock,Ichnt Balance Sheet,Nhs Supply Chain,3759960,"181,242.26",Optional requirement only
Department of Health,Imperial College Healthcare NHS Trust,25/04/2018,Stock,Ichnt Balance Sheet,Nhs Supply Chain,3759968,"155,985.11",Optional requirement only
Department of Health,Imperial College Healthcare NHS Trust,26/04/2018,Bldg/Eng Equip Maint/Rep,Nursing Directorate,Cbre Managed Services Ltd,3760568,"695,702.36",Optional requirement only
Department of Health,Imperial College Healthcare NHS Trust,26/04/2018,Bldg/Eng Equip Maint/Rep,Nursing Directorate,Cbre Managed Services Ltd,3761746,"134,557.78",Optional requirement only
Department of Health,Imperial College Healthcare NHS Trust,26/04/2018,Buildings-Additions-Purchased,Capital Summary,Cbre Managed Services Ltd,3761746,"1,377,935.64",Optional requirement only
Department of Health,Imperial College Healthcare NHS Trust,26/04/2018,Buildings-Additions-Purchased,Capital Summary,M&J Group (Construction & Roofin) Ltd [Cs],3760555,"74,001.14",Optional requirement only
Department of Health,Imperial College Healthcare NHS Trust,26/04/2018,Buildings-Additions-Purchased,Capital Summary,M&J Group (Construction & Roofin) Ltd [Cs],3760690,"86,298.47",Optional requirement only
Department of Health,Imperial College Healthcare NHS Trust,26/04/2018,Buildings-Additions-Purchased,Capital Summary,Princebuild Limited,3757501,"80,675.05",Optional requirement only
Department of Health,Imperial College Healthcare NHS Trust,26/04/2018,Childcare Vouchers,Ichnt Balance Sheet,Sodexo Motivation Solutions Uk Ltd,3762401,"75,131.64",Optional requirement only
Department of Health,Imperial College Healthcare NHS Trust,26/04/2018,Clinical Managed Service Contr,Pathology,Abbott Laboratories Ltd,3751619,"197,763.55",Optional requirement only
Department of Health,Imperial College Healthcare NHS Trust,26/04/2018,Clinical Managed Service Contr,Pathology,Abbott Laboratories Ltd,3751621,"218,606.11",Optional requirement only
Department of Health,Imperial College Healthcare NHS Trust,26/04/2018,Computer Software/License,"Div Of Surg, Cardiov & Cancer",Mckesson Technologies Uk Ltd,3758287,"36,446.30",Optional requirement only
Department of Health,Imperial College Healthcare NHS Trust,26/04/2018,Consultancy Fees,"Div Of Surg, Cardiov & Cancer",Acumentice Limited,3758672,"192,834.00",Optional requirement only
Department of Health,Imperial College Healthcare NHS Trust,26/04/2018,Consultancy Fees,Office Of Chief Executive,Pricewaterhousecoopers Llp,3758743,"37,665.60",Optional requirement only
Department of Health,Imperial College Healthcare NHS Trust,26/04/2018,Dialysers,Div Of Med & Integrated Care,Baxter Healthcare Ltd,3755698,"133,885.37",Optional requirement only
Department of Health,Imperial College Healthcare NHS Trust,26/04/2018,Drugs Pbr Excluded,"Div Of Surg, Cardiov & Cancer",Healthcare At Home Ltd,3759983,"107,880.00",Optional requirement only
Department of Health,Imperial College Healthcare NHS Trust,26/04/2018,Ext Contr Catering,Private Patients Directorate,Sodexo Limited,3761146,"159,533.95",Optional requirement only
Department of Health,Imperial College Healthcare NHS Trust,26/04/2018,Ext Contr Catering,Private Patients Directorate,Sodexo Limited,3761147,"159,533.95",Optional requirement only
Department of Health,Imperial College Healthcare NHS Trust,26/04/2018,Ext Contr Catering,Private Patients Directorate,Sodexo Limited,3761148,"159,533.95",Optional requirement only
Department of Health,Imperial College Healthcare NHS Trust,26/04/2018,Ext Contr Catering,Private Patients Directorate,Sodexo Limited,3761149,"159,533.95",Optional requirement only
Department of Health,Imperial College Healthcare NHS Trust,26/04/2018,Ext Contr Hotel Srvcs - Pp,Private Patients Directorate,Sodexo Limited,3760721,"26,426.32",Optional requirement only
Department of Health,Imperial College Healthcare NHS Trust,26/04/2018,Ext Contr Hotel Srvcs - Pp,Private Patients Directorate,Sodexo Limited,3760726,"33,061.08",Optional requirement only
Department of Health,Imperial College Healthcare NHS Trust,26/04/2018,Ext Contr Logistics,Finance Directorate,Dhl Supply Chain  (Former Excel),3757331,"143,298.88",Optional requirement only
Department of Health,Imperial College Healthcare NHS Trust,26/04/2018,Ic Pay Rechge In: Admin & Mgmt,Medical Director Summary,Imperial College London,3761447,"29,055.08",Optional requirement only
Department of Health,Imperial College Healthcare NHS Trust,26/04/2018,Isotopes,Div Of Women & Clin Support,Mallinckrodt Rp Uk Ltd,3758631,"55,315.20",Optional requirement only
Department of Health,Imperial College Healthcare NHS Trust,26/04/2018,It Eqpt-Additions,Capital Summary,4 Way Solutions Ltd,3758628,"80,539.20",Optional requirement only
Department of Health,Imperial College Healthcare NHS Trust,26/04/2018,It Eqpt-Additions,Capital Summary,Block Solutions Ltd,3759587,"211,345.33",Optional requirement only
Department of Health,Imperial College Healthcare NHS Trust,26/04/2018,It Eqpt-Additions,Capital Summary,Insight Direct (Uk) Ltd,3761343,"124,574.40",Optional requirement only
Department of Health,Imperial College Healthcare NHS Trust,26/04/2018,It Eqpt-Additions,Capital Summary,Insight Direct (Uk) Ltd,3761351,"70,425.60",Optional requirement only
Department of Health,Imperial College Healthcare NHS Trust,26/04/2018,It Eqpt-Additions,Capital Summary,Unify Enterprise Communications Ltd,3757328,"151,819.20",Optional requirement only
Department of Health,Imperial College Healthcare NHS Trust,26/04/2018,Lease Rents,Div Of Med & Integrated Care,Hayes Cottage Renal Unit Ltd,3758320,"306,033.00",Optional requirement only
Department of Health,Imperial College Healthcare NHS Trust,26/04/2018,Other Gen Supplies & Srv,Information & Comms Technology,Crown Records Management,3760723,"36,296.86",Optional requirement only
Department of Health,Imperial College Healthcare NHS Trust,26/04/2018,Other Research Exp - Pay,Rd Surgery & Cancer Division,Imperial College London,3760730,"42,000.00",Optional requirement only
Department of Health,Imperial College Healthcare NHS Trust,26/04/2018,Other Research Exp - Pay,Rd Surgery & Cancer Division,Imperial College London,3761477,"72,250.53",Optional requirement only
Department of Health,Imperial College Healthcare NHS Trust,26/04/2018,Other Research Exp - Pay,Rdwomen And Children Division,Imperial College London,3761463,"60,659.25",Optional requirement only
Department of Health,Imperial College Healthcare NHS Trust,26/04/2018,Patients Appl: Purchase,"Div Of Surg, Cardiov & Cancer",Chas A Blatchford And Sons Ltd,3758398,"40,158.32",Optional requirement only
Department of Health,Imperial College Healthcare NHS Trust,26/04/2018,P & M-Additions-Purchased,Capital Summary,Jackson Lift Services Limited,3761397,"48,000.00",Optional requirement only
Department of Health,Imperial College Healthcare NHS Trust,26/04/2018,P & M-Additions-Purchased,Capital Summary,Li-Cor Biosciences Uk Ltd,3757345,"38,931.60",Optional requirement only
Department of Health,Imperial College Healthcare NHS Trust,26/04/2018,P & M-Additions-Purchased,Capital Summary,Nipro Europe Nv Uk,3757516,"110,400.00",Optional requirement only
Department of Health,Imperial College Healthcare NHS Trust,26/04/2018,P & M-Additions-Purchased,Capital Summary,Philips Healthcare,3752564,"1,035,960.00",Optional requirement only
Department of Health,Imperial College Healthcare NHS Trust,26/04/2018,P & M-Additions-Purchased,Capital Summary,Ptw-Uk Ltd,3760565,"46,926.00",Optional requirement only
Department of Health,Imperial College Healthcare NHS Trust,26/04/2018,Purch Hcare Independent Sector,"Div Of Surg, Cardiov & Cancer",Parkside Hospital,3759280,"59,729.88",Optional requirement only
Department of Health,Imperial College Healthcare NHS Trust,26/04/2018,Purch Hcare Independent Sector,"Div Of Surg, Cardiov & Cancer",Parkside Hospital,3759368,"29,864.94",Optional requirement only
Department of Health,Imperial College Healthcare NHS Trust,26/04/2018,Purch Hcare Independent Sector,"Div Of Surg, Cardiov & Cancer",Parkside Hospital,3759380,"59,729.88",Optional requirement only
Department of Health,Imperial College Healthcare NHS Trust,26/04/2018,Purch Hcare Independent Sector,"Div Of Surg, Cardiov & Cancer",Parkside Hospital,3759413,"29,864.94",Optional requirement only
Department of Health,Imperial College Healthcare NHS Trust,26/04/2018,Services Received - Nhsts,Div Of Med & Integrated Care,London North West Univ Healthcare Nhs Trust,3761484,"168,748.00",Optional requirement only
Department of Health,Imperial College Healthcare NHS Trust,26/04/2018,Stock,Ichnt Balance Sheet,Nhs Supply Chain [Zero Cost Only],3761452,"102,741.86",Optional requirement only
Department of Health,Imperial College Healthcare NHS Trust,26/04/2018,Transcription Services,Div Of Med & Integrated Care,Dictate It Ltd,3755832,"32,581.75",Optional requirement only
Department of Health,Imperial College Healthcare NHS Trust,26/04/2018,Transcription Services,"Div Of Surg, Cardiov & Cancer",Dictate It Ltd,3755830,"38,734.10",Optional requirement only
